fUST/lending_fUST_20241022
["ID","MTS","AMOUNT","RATE_DAILY","PERIOD"]
[340637987,1729577446313,-17466.28611679,0.0001584,2]
[340637988,1729577446323,-151.0,0.0001584,2]
[340637989,1729577446333,-151.0,0.0001584,2]
[340637990,1729577446342,-151.0,0.0001584,2]
[340637991,1729577446352,-151.0,0.0001584,2]
[340637992,1729577446361,-151.0,0.0001584,2]
[340637993,1729577446371,-151.0,0.0001584,2]
[340637994,1729577446381,-151.0,0.0001584,2]
[340637995,1729577446391,-151.0,0.0001584,2]
[340637996,1729577446401,-4454.84583,0.0001584,2]
[340637997,1729577446411,-4454.84583,0.0001584,2]
[340637998,1729577446420,-3849.99457337,0.0001584,2]
[340638000,1729577702907,154.0,0.00016,120]
[340638028,1729578121969,1000.0,0.00022,60]
[340638072,1729578417122,-169.29422994,0.00013871,2]
[340638073,1729578425101,-400.53734858,0.00013871,2]
[340638076,1729578442135,-846.77589281,0.00013871,2]
[340638077,1729578448082,-1690.2995395,0.00013871,2]
[340638084,1729578547200,-803.7640124,0.00013051,2]
[340638085,1729578547222,-4228.36491697,0.00013871,2]
[340638086,1729578547243,-1013.39066493,0.000139,2]
[340638087,1729578547265,-1294.47157954,0.000139,2]
[340638088,1729578547287,-300.0,0.00013986,2]
[340638089,1729578547308,-300.0,0.00013987,2]
[340638090,1729578547328,-159.21638227,0.0001399,2]
[340638091,1729578547350,-24900.0,0.00013991,2]
[340638092,1729578547624,-302.87222329,0.00014,2]
[340638093,1729578547645,-1761.0266307,0.00014502,2]
[340638116,1729578631974,-319.31252,0.00015,9]
[340638117,1729578631988,-477.58602924,0.00015,9]
[340638124,1729578638485,-94.08621031,0.00015,9]
[340638137,1729578640168,-109.01524045,0.00015,9]
[340638138,1729578640183,-2829.42840457,0.00015,2]
[340638139,1729578640195,-300.0,0.00015364,2]
[340638140,1729578640208,-300.0,0.00015364,2]
[340638141,1729578640218,-7796.42510712,0.00015365,2]
[340638142,1729578640229,-153.0,0.00015452,2]
[340638143,1729578640241,-500.0,0.0001558,2]
[340638144,1729578640252,-153.0,0.000156,2]
[340638145,1729578640264,-210.744449,0.000156,2]
[340638146,1729578640275,-153.0,0.000156,2]
[340638147,1729578640288,-210.744449,0.00015616,2]
[340638148,1729578640299,-159.21638228,0.0001581,2]
[340638149,1729578640310,-20509.64574955,0.0001581,2]
[340638150,1729578640321,-151.0,0.0001582,2]
[340638151,1729578640332,-151.0,0.0001582,2]
[340638152,1729578640343,-151.0,0.0001582,2]
[340638153,1729578640354,-16403.1007635,0.0001582,2]
[340638154,1729578640365,-16403.1007635,0.0001583,2]
[340638155,1729578640376,-151.0,0.0001583,2]
[340638156,1729578640387,-159.10819,0.0001583,2]
[340638157,1729578640398,-151.0,0.0001583,2]
[340638158,1729578640408,-296.42348466,0.0001584,2]
[340638159,1729578640419,-66890.772952,0.0001584,2]
[340638160,1729578640431,-151.0,0.0001584,2]
[340638161,1729578640442,-272.763389,0.0001584,2]
[340638162,1729578640454,-272.763389,0.0001584,2]
[340638163,1729578640465,-151.0,0.0001584,2]
[340638164,1729578640476,-151.0,0.0001584,2]
[340638165,1729578640488,-603.130354,0.0001584,2]
[340638166,1729578640499,-603.130354,0.0001584,2]
[340638167,1729578640511,-1152.010666,0.0001584,2]
[340638168,1729578640521,-1152.010666,0.0001584,2]
[340638169,1729578640533,-151.0,0.0001584,2]
[340638170,1729578640544,-151.0,0.0001584,2]
[340638171,1729578640555,-600.528243,0.0001584,2]
[340638172,1729578640566,-600.528243,0.0001584,2]
[340638173,1729578640577,-151.0,0.0001584,2]
[340638174,1729578640588,-269.383628,0.0001584,2]
[340638175,1729578640599,-269.383628,0.0001584,2]
[340638176,1729578640610,-298.12866,0.0001584,2]
[340638177,1729578640621,-223.042641,0.0001584,2]
[340638178,1729578640631,-151.0,0.0001584,2]
[340638179,1729578640642,-223.042641,0.0001584,2]
[340638180,1729578640652,-151.0,0.0001584,2]
[340638181,1729578640663,-752.977067,0.0001584,2]
[340638182,1729578640673,-752.977067,0.0001584,2]
[340638183,1729578640683,-1416.12614,0.0001584,2]
[340638184,1729578640694,-1416.12614,0.0001584,2]
[340638185,1729578640704,-368.247351,0.0001584,2]
[340638186,1729578640715,-368.247351,0.0001584,2]
[340638187,1729578640726,-151.0,0.0001584,2]
[340638188,1729578640737,-151.0,0.0001584,2]
[340638189,1729578640747,-151.0,0.0001584,2]
[340638190,1729578640758,-151.0,0.0001584,2]
[340638191,1729578640768,-151.0,0.0001584,2]
[340638192,1729578640779,-940.121487,0.0001584,2]
[340638193,1729578640789,-151.0,0.0001584,2]
[340638194,1729578640803,-940.121487,0.0001584,2]
[340638195,1729578640813,-151.0,0.0001584,2]
[340638196,1729578640824,-3019.194132,0.0001584,2]
[340638197,1729578640835,-900.230089,0.0001584,2]
[340638198,1729578640846,-900.230089,0.0001584,2]
[340638199,1729578640856,-3019.194132,0.0001584,2]
[340638200,1729578640867,-900.230089,0.0001584,2]
[340638201,1729578640878,-900.230089,0.0001584,2]
[340638202,1729578640891,-158.303788,0.0001584,2]
[340638203,1729578640902,-158.303788,0.0001584,2]
[340638204,1729578640913,-158.303788,0.0001584,2]
[340638205,1729578640925,-158.303788,0.0001584,2]
[340638206,1729578640935,-2101.315291,0.0001584,2]
[340638207,1729578640947,-151.0,0.0001584,2]
[340638208,1729578640957,-151.0,0.0001584,2]
[340638209,1729578640968,-2101.315291,0.0001584,2]
[340638210,1729578640979,-5842.253543,0.0001584,2]
[340638211,1729578640989,-151.0,0.0001584,2]
[340638212,1729578641002,-151.0,0.0001584,2]
[340638213,1729578641012,-5842.253543,0.0001584,2]
[340638214,1729578641023,-151.0,0.0001584,2]
[340638215,1729578641033,-151.0,0.0001584,2]
[340638216,1729578641044,-151.0,0.0001584,2]
[340638217,1729578641054,-151.0,0.0001584,2]
[340638218,1729578641065,-151.0,0.0001584,2]
[340638219,1729578641076,-151.0,0.0001584,2]
[340638220,1729578641086,-1875.51408897,0.00015841,2]
[340638221,1729578641096,-151.0,0.00015841,2]
[340638222,1729578641107,-1511.42834457,0.00015855,2]
[340638223,1729578641118,-151.0,0.00015855,2]
[340638224,1729578641130,-151.0,0.00015855,2]
[340638225,1729578641141,-151.0,0.00015855,2]
[340638226,1729578641151,-151.0,0.00015855,2]
[340638227,1729578641162,-940.121487,0.00015855,2]
[340638228,1729578641173,-151.0,0.00015855,2]
[340638229,1729578641185,-940.121487,0.00015855,2]
[340638230,1729578641196,-151.0,0.00015855,2]
[340638231,1729578641206,-2101.315291,0.00015855,2]
[340638232,1729578641217,-2101.315291,0.00015855,2]
[340638233,1729578641228,-168.997354,0.0001589,2]
[340638234,1729578641239,-154.102113,0.000159,2]
[340638235,1729578641251,-8201.55038174,0.0001593,2]
[340638236,1729578641262,-151.0,0.0001593,2]
[340638237,1729578641273,-151.0,0.0001593,2]
[340638238,1729578641284,-151.0,0.0001593,2]
[340638239,1729578641296,-151.0,0.0001593,2]
[340638240,1729578641306,-151.0,0.0001593,2]
[340638241,1729578641317,-151.0,0.0001593,2]
[340638242,1729578641328,-152.956993,0.0001593,2]
[340638243,1729578641340,-3704.78381945,0.0001593,2]
[340638244,1729578641351,-41007.7519087,0.0001593,2]
[340638245,1729578641362,-1228.91921353,0.00015931,2]
[340638246,1729578641377,-880.1209974,0.00015931,2]
[340638261,1729578643346,-14294.06055257,0.00015931,2]
[340638262,1729578643357,-8201.55038174,0.00015931,2]
[340638263,1729578643367,-151.0,0.0001594,2]
[340638264,1729578643378,-151.0,0.0001594,2]
[340638265,1729578643388,-272.763389,0.0001594,2]
[340638266,1729578643399,-272.763389,0.0001594,2]
[340638267,1729578643411,-272.763389,0.0001594,2]
[340638268,1729578643422,-272.763389,0.0001594,2]
[340638269,1729578643434,-151.0,0.0001594,2]
[340638270,1729578643445,-151.0,0.0001594,2]
[340638271,1729578643456,-151.0,0.0001594,2]
[340638272,1729578643467,-151.0,0.0001594,2]
[340638273,1729578643478,-603.130354,0.0001594,2]
[340638274,1729578643488,-603.130354,0.0001594,2]
[340638275,1729578643499,-157.87173089,0.0001594,2]
[340638291,1729578645928,-445.25862311,0.0001594,2]
[340638292,1729578645939,-603.130354,0.0001594,2]
[340638293,1729578645948,-196.10086422,0.0001594,2]
[340638294,1729578645960,-955.90980178,0.0001594,2]
[340638295,1729578645969,-1152.010666,0.0001594,2]
[340638296,1729578645979,-1152.010666,0.0001594,2]
[340638297,1729578645988,-1152.010666,0.0001594,2]
[340638299,1729578645998,-151.0,0.0001594,2]
[340638300,1729578646011,-166.228925,0.0001594,2]
[340638301,1729578646021,-151.566036,0.0001594,2]
[340638302,1729578646030,-600.528243,0.0001594,2]
[340638303,1729578646039,-600.528243,0.0001594,2]
[340638304,1729578646048,-600.528243,0.0001594,2]
[340638305,1729578646057,-600.528243,0.0001594,2]
[340638306,1729578646067,-151.0,0.0001594,2]
[340638307,1729578646076,-151.0,0.0001594,2]
[340638308,1729578646085,-269.383628,0.0001594,2]
[340638309,1729578646095,-269.383628,0.0001594,2]
[340638310,1729578646104,-269.383628,0.0001594,2]
[340638311,1729578646113,-269.383628,0.0001594,2]
[340638312,1729578646122,-223.042641,0.0001594,2]
[340638313,1729578646132,-223.042641,0.0001594,2]
[340638314,1729578646141,-151.0,0.0001594,2]
[340638315,1729578646150,-151.0,0.0001594,2]
[340638316,1729578646159,-223.042641,0.0001594,2]
[340638317,1729578646169,-151.0,0.0001594,2]
[340638318,1729578646179,-223.042641,0.0001594,2]
[340638319,1729578646189,-151.0,0.0001594,2]
[340638320,1729578646203,-151.0,0.0001594,2]
[340638321,1729578646212,-151.0,0.0001594,2]
[340638322,1729578646221,-752.977067,0.0001594,2]
[340638323,1729578646230,-752.977067,0.0001594,2]
[340638324,1729578646239,-752.977067,0.0001594,2]
[340638325,1729578646249,-752.977067,0.0001594,2]
[340638326,1729578646258,-1416.12614,0.0001594,2]
[340638327,1729578646268,-1416.12614,0.0001594,2]
[340638328,1729578646277,-1416.12614,0.0001594,2]
[340638329,1729578646286,-1416.12614,0.0001594,2]
[340638330,1729578646296,-368.247351,0.0001594,2]
[340638331,1729578646306,-368.247351,0.0001594,2]
[340638332,1729578646316,-368.247351,0.0001594,2]
[340638333,1729578646325,-368.247351,0.0001594,2]
[340638334,1729578646335,-368.247351,0.0001594,2]
[340638335,1729578646344,-368.247351,0.0001594,2]
[340638336,1729578646353,-157.202293,0.0001594,2]
[340638337,1729578646363,-151.0,0.0001594,2]
[340638338,1729578646372,-151.0,0.0001594,2]
[340638339,1729578646381,-151.0,0.0001594,2]
[340638340,1729578646390,-151.0,0.0001594,2]
[340638341,1729578646400,-151.0,0.0001594,2]
[340638342,1729578646409,-151.0,0.0001594,2]
[340638343,1729578646419,-151.0,0.0001594,2]
[340638344,1729578646430,-151.0,0.0001594,2]
[340638345,1729578646440,-151.0,0.0001594,2]
[340638346,1729578646450,-242.413999,0.0001594,2]
[340638347,1729578646460,-940.121487,0.0001594,2]
[340638348,1729578646470,-940.121487,0.0001594,2]
[340638349,1729578646479,-940.121487,0.0001594,2]
[340638350,1729578646492,-151.0,0.0001594,2]
[340638351,1729578646502,-151.0,0.0001594,2]
[340638352,1729578646512,-151.0,0.0001594,2]
[340638353,1729578646521,-940.121487,0.0001594,2]
[340638354,1729578646531,-940.121487,0.0001594,2]
[340638355,1729578646540,-940.121487,0.0001594,2]
[340638356,1729578646551,-151.0,0.0001594,2]
[340638357,1729578646560,-151.0,0.0001594,2]
[340638358,1729578646570,-151.0,0.0001594,2]
[340638359,1729578646579,-3019.194132,0.0001594,2]
[340638360,1729578646589,-3019.194132,0.0001594,2]
[340638361,1729578646599,-3019.194132,0.0001594,2]
[340638362,1729578646608,-900.230089,0.0001594,2]
[340638363,1729578646618,-900.230089,0.0001594,2]
[340638364,1729578646627,-3019.194132,0.0001594,2]
[340638365,1729578646636,-900.230089,0.0001594,2]
[340638366,1729578646645,-3019.194132,0.0001594,2]
[340638367,1729578646655,-900.230089,0.0001594,2]
[340638368,1729578646664,-3019.194132,0.0001594,2]
[340638369,1729578646673,-900.230089,0.0001594,2]
[340638370,1729578646685,-900.230089,0.0001594,2]
[340638371,1729578646694,-900.230089,0.0001594,2]
[340638372,1729578646704,-900.230089,0.0001594,2]
[340638373,1729578646714,-158.303788,0.0001594,2]
[340638374,1729578646723,-158.303788,0.0001594,2]
[340638375,1729578646732,-158.303788,0.0001594,2]
[340638376,1729578646741,-158.303788,0.0001594,2]
[340638377,1729578646751,-158.303788,0.0001594,2]
[340638378,1729578646760,-158.303788,0.0001594,2]
[340638379,1729578646769,-158.303788,0.0001594,2]
[340638380,1729578646778,-158.303788,0.0001594,2]
[340638381,1729578646787,-2101.315291,0.0001594,2]
[340638382,1729578646796,-2101.315291,0.0001594,2]
[340638383,1729578646807,-2101.315291,0.0001594,2]
[340638384,1729578646816,-210.997947,0.0001594,2]
[340638385,1729578646826,-2101.315291,0.0001594,2]
[340638386,1729578646835,-2101.315291,0.0001594,2]
[340638387,1729578646845,-2101.315291,0.0001594,2]
[340638388,1729578646854,-5842.253543,0.0001594,2]
[340638389,1729578646863,-5842.253543,0.0001594,2]
[340638390,1729578646872,-5842.253543,0.0001594,2]
[340638391,1729578646882,-151.0,0.0001594,2]
[340638392,1729578646891,-151.0,0.0001594,2]
[340638393,1729578646900,-151.0,0.0001594,2]
[340638394,1729578646909,-151.0,0.0001594,2]
[340638395,1729578646919,-5842.253543,0.0001594,2]
[340638396,1729578646930,-5842.253543,0.0001594,2]
[340638397,1729578646939,-5842.253543,0.0001594,2]
[340638398,1729578646949,-151.0,0.0001594,2]
[340638399,1729578646959,-151.0,0.0001594,2]
[340638400,1729578646969,-151.0,0.0001594,2]
[340638401,1729578646978,-151.0,0.0001594,2]
[340638402,1729578646987,-151.0,0.0001594,2]
[340638403,1729578646997,-281.541854,0.0001594,2]
[340638404,1729578647011,-32806.201527,0.0001594,2]
[340638405,1729578647020,-151.0,0.00015941,2]
[340638406,1729578647030,-151.0,0.00015941,2]
[340638407,1729578647039,-272.763389,0.00015941,2]
[340638408,1729578647048,-272.763389,0.00015941,2]
[340638409,1729578647057,-272.763389,0.00015941,2]
[340638410,1729578647066,-272.763389,0.00015941,2]
[340638411,1729578647076,-151.0,0.00015941,2]
[340638412,1729578647085,-151.0,0.00015941,2]
[340638413,1729578647095,-151.0,0.00015941,2]
[340638414,1729578647104,-229.858974,0.00015941,2]
[340638415,1729578647114,-603.130354,0.00015941,2]
[340638416,1729578647123,-603.130354,0.00015941,2]
[340638417,1729578647132,-603.130354,0.00015941,2]
[340638418,1729578647142,-603.130354,0.00015941,2]
[340638419,1729578647152,-1152.010666,0.00015941,2]
[340638420,1729578647162,-1152.010666,0.00015941,2]
[340638421,1729578647171,-1152.010666,0.00015941,2]
[340638422,1729578647182,-1152.010666,0.00015941,2]
[340638423,1729578647191,-600.528243,0.00015941,2]
[340638424,1729578647201,-600.528243,0.00015941,2]
[340638425,1729578647210,-600.528243,0.00015941,2]
[340638426,1729578647220,-600.528243,0.00015941,2]
[340638427,1729578647229,-151.0,0.00015941,2]
[340638428,1729578647238,-151.0,0.00015941,2]
[340638429,1729578647248,-269.383628,0.00015941,2]
[340638430,1729578647258,-269.383628,0.00015941,2]
[340638431,1729578647267,-269.383628,0.00015941,2]
[340638432,1729578647276,-269.383628,0.00015941,2]
[340638433,1729578647285,-223.042641,0.00015941,2]
[340638434,1729578647296,-223.042641,0.00015941,2]
[340638435,1729578647305,-223.042641,0.00015941,2]
[340638436,1729578647315,-151.0,0.00015941,2]
[340638437,1729578647326,-223.042641,0.00015941,2]
[340638438,1729578647335,-151.0,0.00015941,2]
[340638439,1729578647345,-151.0,0.00015941,2]
[340638440,1729578647354,-236.833983,0.00015941,2]
[340638441,1729578647364,-752.977067,0.00015941,2]
[340638442,1729578647373,-752.977067,0.00015941,2]
[340638443,1729578647383,-752.977067,0.00015941,2]
[340638444,1729578647392,-752.977067,0.00015941,2]
[340638445,1729578647402,-1416.12614,0.00015941,2]
[340638446,1729578647412,-1416.12614,0.00015941,2]
[340638447,1729578647422,-1416.12614,0.00015941,2]
[340638448,1729578647434,-1416.12614,0.00015941,2]
[340638449,1729578647443,-368.247351,0.00015941,2]
[340638450,1729578647452,-368.247351,0.00015941,2]
[340638451,1729578647462,-368.247351,0.00015941,2]
[340638452,1729578647471,-368.247351,0.00015941,2]
[340638453,1729578647481,-151.0,0.00015941,2]
[340638454,1729578647490,-151.0,0.00015941,2]
[340638455,1729578647500,-151.0,0.00015941,2]
[340638456,1729578647509,-151.0,0.00015941,2]
[340638457,1729578647519,-151.0,0.00015941,2]
[340638458,1729578647528,-151.0,0.00015941,2]
[340638459,1729578647538,-151.0,0.00015941,2]
[340638460,1729578647547,-151.0,0.00015941,2]
[340638461,1729578647557,-940.121487,0.00015941,2]
[340638462,1729578647567,-940.121487,0.00015941,2]
[340638463,1729578647576,-151.0,0.00015941,2]
[340638464,1729578647585,-940.121487,0.00015941,2]
[340638465,1729578647594,-300.998852,0.00015941,2]
[340638466,1729578647603,-940.121487,0.00015941,2]
[340638467,1729578647613,-940.121487,0.00015941,2]
[340638468,1729578647622,-940.121487,0.00015941,2]
[340638469,1729578647631,-151.0,0.00015941,2]
[340638470,1729578647641,-151.0,0.00015941,2]
[340638471,1729578647650,-168.850394,0.00015941,2]
[340638472,1729578647659,-3019.194132,0.00015941,2]
[340638473,1729578647668,-3019.194132,0.00015941,2]
[340638474,1729578647677,-900.230089,0.00015941,2]
[340638475,1729578647687,-3019.194132,0.00015941,2]
[340638476,1729578647697,-3019.194132,0.00015941,2]
[340638477,1729578647706,-900.230089,0.00015941,2]
[340638478,1729578647716,-900.230089,0.00015941,2]
[340638479,1729578647725,-900.230089,0.00015941,2]
[340638480,1729578647734,-900.230089,0.00015941,2]
[340638481,1729578647744,-900.230089,0.00015941,2]
[340638482,1729578647753,-900.230089,0.00015941,2]
[340638483,1729578647763,-900.230091,0.00015941,2]
[340638484,1729578647773,-158.303788,0.00015941,2]
[340638485,1729578647782,-158.303788,0.00015941,2]
[340638486,1729578647792,-158.303788,0.00015941,2]
[340638487,1729578647802,-158.303788,0.00015941,2]
[340638488,1729578647812,-158.303788,0.00015941,2]
[340638489,1729578647822,-158.303788,0.00015941,2]
[340638490,1729578647832,-158.303788,0.00015941,2]
[340638491,1729578647841,-2101.315291,0.00015941,2]
[340638492,1729578647851,-158.303781,0.00015941,2]
[340638493,1729578647860,-2101.315291,0.00015941,2]
[340638494,1729578647870,-2101.315291,0.00015941,2]
[340638495,1729578647880,-2101.315291,0.00015941,2]
[340638496,1729578647889,-2101.315291,0.00015941,2]
[340638497,1729578647899,-2101.315291,0.00015941,2]
[340638498,1729578647908,-5842.253543,0.00015941,2]
[340638499,1729578647917,-5842.253543,0.00015941,2]
[340638500,1729578647927,-151.0,0.00015941,2]
[340638501,1729578647937,-151.0,0.00015941,2]
[340638502,1729578647946,-151.0,0.00015941,2]
[340638503,1729578647955,-5842.253543,0.00015941,2]
[340638504,1729578647965,-151.0,0.00015941,2]
[340638505,1729578647974,-5842.253543,0.00015941,2]
[340638506,1729578647983,-287.354485,0.00015941,2]
[340638507,1729578647993,-336.590565,0.0001595,2]
[340638508,1729578648004,-336.590565,0.0001595,2]
[340638509,1729578648014,-390.749561,0.0001595,2]
[340638510,1729578648024,-390.749561,0.0001595,2]
[340638511,1729578648035,-336.590565,0.0001595,2]
[340638512,1729578648044,-336.590565,0.0001595,2]
[340638513,1729578648053,-390.749561,0.0001595,2]
[340638514,1729578648062,-390.749561,0.0001595,2]
[340638515,1729578648072,-151.0,0.0001595,2]
[340638516,1729578648081,-151.0,0.0001595,2]
[340638517,1729578648090,-151.0,0.0001595,2]
[340638518,1729578648100,-151.0,0.0001595,2]
[340638519,1729578648110,-151.0,0.0001595,2]
[340638520,1729578648119,-290.495676,0.0001595,2]
[340638521,1729578648129,-151.0,0.0001595,2]
[340638522,1729578648139,-151.0,0.0001595,2]
[340638523,1729578648148,-151.0,0.0001595,2]
[340638524,1729578648157,-151.0,0.0001595,2]
[340638525,1729578648166,-151.0,0.0001595,2]
[340638526,1729578648176,-151.0,0.0001595,2]
[340638527,1729578648185,-151.0,0.0001595,2]
[340638528,1729578648195,-151.0,0.0001595,2]
[340638529,1729578648204,-153.417588,0.0001595,2]
[340638530,1729578648214,-151.0,0.0001595,2]
[340638531,1729578648223,-151.0,0.0001595,2]
[340638532,1729578648232,-151.0,0.0001595,2]
[340638533,1729578648242,-156.188676,0.0001595,2]
[340638534,1729578648251,-151.0,0.0001595,2]
[340638535,1729578648261,-151.0,0.0001595,2]
[340638536,1729578648270,-151.0,0.0001595,2]
[340638537,1729578648280,-151.0,0.0001595,2]
[340638538,1729578648290,-151.0,0.0001595,2]
[340638539,1729578648299,-151.0,0.0001595,2]
[340638540,1729578648309,-151.0,0.0001595,2]
[340638541,1729578648319,-151.0,0.0001595,2]
[340638542,1729578648329,-151.0,0.0001595,2]
[340638543,1729578648338,-151.0,0.0001595,2]
[340638544,1729578648348,-151.0,0.0001595,2]
[340638545,1729578648357,-151.0,0.0001595,2]
[340638546,1729578648367,-151.0,0.0001595,2]
[340638547,1729578648377,-151.0,0.0001595,2]
[340638548,1729578648386,-152.240779,0.0001595,2]
[340638549,1729578648396,-3566.454505,0.0001595,2]
[340638550,1729578648405,-3566.454505,0.0001595,2]
[340638551,1729578648415,-3566.454505,0.0001595,2]
[340638552,1729578648424,-3566.454505,0.0001595,2]
[340638553,1729578648434,-1865.316854,0.0001595,2]
[340638554,1729578648444,-3566.454505,0.0001595,2]
[340638555,1729578648453,-1865.316854,0.0001595,2]
[340638556,1729578648462,-3566.454505,0.0001595,2]
[340638557,1729578648472,-1865.316854,0.0001595,2]
[340638558,1729578648481,-1865.316854,0.0001595,2]
[340638559,1729578648492,-121.80635953,0.0001595,2]
[340638560,1729578648779,-187.81105994,0.0001595,2]
[340638564,1729578716262,193.96765258,0.00013771,2]
[340638587,1729579069231,-5689.500387,0.00013338,2]
[340638638,1729579748865,200.0,0.00014,7]
[340638668,1729579838417,-552.575652,0.00014831,2]
[340638669,1729579838429,-741.88297115,0.000149,2]
[340638670,1729579838440,-552.575652,0.00015516,2]
[340638671,1729579838450,-500.0,0.0001558,2]
[340638672,1729579838461,-508.43371124,0.00015735,2]
[340638673,1729579838471,-508.43371124,0.00015763,2]
[340638674,1729579838483,-508.43371124,0.0001579,2]
[340638675,1729579838495,-300.0,0.00015834,2]
[340638676,1729579838507,-300.0,0.00015834,2]
[340638677,1729579838518,-7796.42510713,0.00015835,2]
[340638678,1729579838528,-1132.66263208,0.00015842,2]
[340638679,1729579838538,-1875.51408897,0.0001589,2]
[340638680,1729579838549,-162.712018,0.0001589,2]
[340638681,1729579838559,-3752.14363245,0.00015932,2]
[340638682,1729579838570,-812.20711256,0.00015932,2]
[340638683,1729579838610,-6152.06705327,0.00015932,2]
[340638684,1729579838621,-500.0,0.00015941,2]
[340638685,1729579838632,-500.0,0.00015941,2]
[340638686,1729579838644,-500.0,0.00015941,2]
[340638687,1729579838656,-268.089,0.00015941,2]
[340638688,1729579838667,-500.0,0.00015941,2]
[340638689,1729579838682,-500.0,0.00015941,2]
[340638690,1729579838697,-500.0,0.00015941,2]
[340638691,1729579838710,-11256.4308974,0.00015942,2]
[340638692,1729579838722,-2540.21376046,0.00015942,2]
[340638695,1729579840164,-7453.68761184,0.00015942,2]
[340638696,1729579840200,-5133.82092398,0.00015942,2]
[340638697,1729579840309,-5765.10020122,0.00015942,2]
[340638698,1729579840320,-153.218612,0.0001595,2]
[340638699,1729579840330,-151.0,0.0001595,2]
[340638700,1729579840340,-151.0,0.0001595,2]
[340638701,1729579840351,-3752.14363245,0.00015952,2]
[340638702,1729579840361,-6964.27416583,0.00015952,2]
[340638703,1729579840372,-151.0,0.00015953,2]
[340638704,1729579840385,-151.0,0.00015953,2]
[340638705,1729579840395,-151.0,0.00015953,2]
[340638706,1729579840406,-151.0,0.0001596,2]
[340638707,1729579840416,-151.0,0.00015962,2]
[340638708,1729579840426,-622.455671,0.00015962,2]
[340638709,1729579840437,-622.455671,0.00015962,2]
[340638710,1729579840453,-151.0,0.00015962,2]
[340638711,1729579840463,-151.0,0.00015962,2]
[340638712,1729579840475,-151.0,0.00015962,2]
[340638713,1729579840485,-151.0,0.00015962,2]
[340638714,1729579840496,-414.725466,0.00015962,2]
[340638715,1729579840507,-151.0,0.00015962,2]
[340638716,1729579840517,-414.725466,0.00015962,2]
[340638717,1729579840528,-151.0,0.00015962,2]
[340638718,1729579840539,-151.0,0.00015962,2]
[340638719,1729579840550,-451.786241,0.00015962,2]
[340638720,1729579840560,-312.599649,0.00015962,2]
[340638721,1729579840570,-312.599649,0.00015962,2]
[340638722,1729579840580,-184.123675,0.00015962,2]
[340638723,1729579840592,-184.123675,0.00015962,2]
[340638724,1729579840602,-849.675684,0.00015962,2]
[340638725,1729579840613,-22512.8617947,0.0001597,2]
[340638726,1729579840625,-41785.644995,0.0001597,2]
[340638727,1729579840636,-500.0,0.00015973,2]
[340638728,1729579840646,-152.55901739,0.00015973,2]
[340638729,1729579840657,-501.1306673,0.00015973,2]
[340638730,1729579840667,-505.38053576,0.00015973,2]
[340638731,1729579840681,-501.27880012,0.00015973,2]
[340638732,1729579840696,-500.0,0.00015973,2]
[340638733,1729579840707,-500.0,0.00015973,2]
[340638734,1729579840718,-220.13424199,0.00015973,2]
[340638735,1729579840729,-500.0,0.00015973,2]
[340638736,1729579840739,-500.0,0.00015973,2]
[340638737,1729579840751,-501.66541236,0.00015973,2]
[340638738,1729579840762,-301.04790476,0.00015973,2]
[340638739,1729579840773,-500.0,0.00015973,2]
[340638740,1729579840783,-500.25376638,0.00015973,2]
[340638741,1729579840794,-160.53773418,0.00015973,2]